Cogmind - Beta 15 @@@ ROGUE MODE // 2025.07.14 @ 11:25:44 Player: nostromo Result: Destroyed by G-47 Trooper with Particle Gun Performance ------------- Evolutions (2) 1000 Regions Visited (4) 800 Robots Destroyed (12) 60 Value Destroyed (377) 377 Prototype IDs (0) 0 Alien Tech Used (0) 0 Bonus (-40) -40 TOTAL SCORE: 2197 Bonus ------- Friendly Fire -40 Cogmind --------- Core Integrity 0/550 Matter 169/300 Energy 84/100 System Corruption 1% Temperature Cool (36) Movement Core (50) Location -8/Materials Parts ------- > --- POWER (2) -------- (None) > --- PROPULSION (3) --- (None) > --- UTILITY (4) ------ Visual Processing Unit > --- WEAPON (2) ------- (None) > --- INVENTORY (5) ---- Heat Sink Seismic Detector Reaction Control System Makeshift Light Armor Plating Subdweller Laser Peak State ------------ > --- POWER ------------ (None) > --- PROPULSION ------- Carbon-fiber Leg VSS Leg Subdweller Monowheel > --- UTILITY ---------- Humpback Visual Processing Unit Seismic Detector > --- WEAPON ----------- Subdweller Machine Gun > --- INVENTORY -------- Heat Sink Large Storage Unit Large Storage Unit Structural Scanner Experimental Sensor Array Seismic Detector Reaction Control System Makeshift Light Armor Plating High-powered Tractor Beam Subdweller Laser Dirty Datajack Scrap Shield Fragment Scrap Shield Fragment [Rating: 18] Favorites ----------- Power Light Nuclear Core Engine Ion Engine Power Core Light Nuclear Core Propulsion Subdweller Monowheel Treads Light Treads Leg VSS Leg Wheel Subdweller Monowheel Utility Humpback Device Heat Sink Storage Humpback Processor Terrain Scan Processor Weapon Grenade Launcher Energy Gun EM Pulse Gun Ballistic Gun Subdweller Machine Gun Launcher Grenade Launcher Special Weapon Mining Laser Slashing Weapon Mining Claw Build | -11 -10 -10 -10 -8 ------- Run | Yrd Mat Min Sub Mat Slots Evolved 4 | . . . . 4 Power 1 | . . . . 1 Propulsion 1 | . . . . 1 Utility 2 | . . . . 2 Weapon . | . . . . . Parts Attached 30 | 6 5 7 5 7 Power 3 | 1 . 1 . 1 Engine 2 | 1 . . . 1 Core 1 | . . 1 . . Reactor . | . . . . . Propulsion 9 | 2 . 2 3 2 Treads 2 | . . 2 . . Leg 2 | . . . . 2 Wheel 5 | 2 . . 3 . Hover . | . . . . . Flight . | . . . . . Utility 9 | 1 4 1 1 2 Device 2 | . 1 . . 1 Storage 5 | 1 3 . 1 . Processor 2 | . . 1 . 1 Hackware . | . . . . . Protection . | . . . . . Artifact . | . . . . . Weapon 9 | 2 1 3 1 2 Energy Gun 4 | 2 . . 1 1 Energy Cannon . | . . . . . Ballistic Gun 1 | . . . . 1 Ballistic Cannon . | . . . . . Launcher 1 | . 1 . . . Special Weapon 2 | . . 2 . . Impact Weapon . | . . . . . Slashing Weapon 1 | . . 1 . . Piercing Weapon . | . . . . . Special Melee Weapon . | . . . . . Unidentified Prototypes . | . . . . . Parts Lost 11 | . . 1 5 5 Power 2 | . . . 1 1 Propulsion 2 | . . . 1 1 Utility 1 | . . . . 1 Weapon 6 | . . 1 3 2 Highest Loss Streak 3 | . . 1 3 3 To Critical Strikes . | . . . . . Average Backups 10 | 1 7 9 11 9 Power . | . 1 1 1 . Propulsion . | . 2 . . . Utility 6 | . 2 5 7 7 Weapon 2 | . 2 2 2 1 Tool/Special . | . . . . . Unused Backups 7 | . . . . 7 Power . | . . . . . Propulsion . | . . . . . Utility 6 | . . . . 6 Weapon . | . . . . . Tool/Special 1 | . . . . 1 Average Slot Usage (%) 71 | . 97 99 64 56 Engine 2 | . 14 2 . 5 Core 6 | . . 11 7 . Treads 6 | . . 19 6 . Wheel 13 | . 28 7 11 8 Device 2 | . 11 4 . 8 Storage 13 | . 14 14 14 6 Processor 3 | . . 9 2 9 Energy Gun 10 | . 16 . 12 . Launcher 9 | . 11 11 8 5 Special Weapon 1 | . . 12 . . Peak Build Rating 18 | 6 8 11 14 18 Average Rating 9 | 4 7 10 10 13 On Entrance 6 | . 6 8 11 8 Naked Turns . | . . . . . Heaviest Build 211 | 14 39 30 210 211 Greatest Support 40 | 26 26 40 40 27 Greatest Overweight (x) 67 | 4 1 1 67 10 Average Overweight (x) 4 | . . . 6 5 Largest Inventory Capacity 35 | 8 15 15 35 35 Average Capacity 26 | 7 14 15 31 26 Most Carried 16 | 4 13 14 16 15 Average Carried 11 | 1 7 9 13 10 Final Capacity 35 | 8 15 15 35 5 Final Carried 15 | 4 13 10 15 5 Class Distribution -------------------- 60% | Hauler-Mutant 39% | Mutant Dominant Class ---------------- Mutant | -10/Materials Mutant | -10/Mines Hauler-Mutant | -10/Subcaves Hauler-Mutant | -8/Materials Resources | -11 -10 -10 -10 -8 ----------- Run | Yrd Mat Min Sub Mat Matter Collected 585 | 260 70 75 180 . Remotely . | . . . . . Salvage Created 379 | . 78 50 222 29 Parts 23 | . 4 3 13 3 Haulers Intercepted . | . . . . . Recyclers Shooed . | . . . . . Parts Field Recycled . | . . . . . Retrieved Matter . | . . . . . Parts Self-Destructed 5 | . . . 5 . Prevented . | . . . . . Kills | -11 -10 -10 -10 -8 ------- Run | Yrd Mat Min Sub Mat Combat Hostiles Destroyed 11 | . 2 1 6 2 Melee 1 | . . 1 . . Guns 4 | . 1 . 3 . AOE 6 | . 1 . 3 2 Classes Destroyed 5 | . 1 . 2 2 Builder 1 | . . . . 1 Swarmer 2 | . . . . 2 Grunt 3 | . 2 1 . . Subdweller 6 | . . . 6 . Scientist 1 | . . . 1 . Best Kill Streak 3 | . 2 1 2 3 Combat Bots Only 2 | . 2 1 2 2 Max Kills in Single Turn 3 | . 1 1 1 3 Gunslinging . | . . . . . Exploded 2 | . 1 . 1 2 Melee 1 | . . 1 . . Uniques/NPCs Destroyed . | . . . . . Combat | -11 -10 -10 -10 -8 -------- Run | Yrd Mat Min Sub Mat Hostile Shots Fired 148 | . 4 27 32 85 Missed 36 | . 1 5 10 20 Hits 112 | . 3 22 22 65 Melee 6 | . . . . 6 Projectile 106 | . 3 22 22 59 Critical Strikes 8 | . . 2 . 6 Damage Taken 1908 | . 33 280 597 998 Core 706 | . 12 62 70 562 Absorbed by Shields . | . . . . . Core Remaining (%) 71 | 100 . . 42 . Volleys Fired 52 | . 6 10 28 8 Largest 2 | . 2 1 2 2 Hottest 100 | . 70 100 90 60 Shots Fired 71 | . 8 10 43 10 Gun 43 | . 6 4 25 8 Cannon . | . . . . . Launcher 22 | . 2 . 18 2 Special 6 | . . 6 . . Kinetic 8 | . . . . 8 Thermal 21 | . . 6 15 . Explosive 22 | . 2 . 18 2 Electromagnetic 20 | . 6 4 10 . Robot Hit Streak 11 | . 3 5 7 11 Robot Miss Streak 6 | . 1 6 3 3 Penetration Max . | . . . . . Secondary Targets . | . . . . . Shots Hit Robots 31 | . 5 4 17 5 Core Hits 19 | . 3 2 11 3 Critical Kills . | . . . . . Critical Parts Destroyed . | . . . . . Critical Strikes 1 | . . . 1 . Burn 1 | . . . 1 . Melee Attacks 1 | . . 1 . . Impact . | . . . . . Slashing 1 | . . 1 . . Piercing . | . . . . . Sneak Attacks . | . . . . . Combat Hostiles . | . . . . . Follow-up Attacks . | . . . . . Damage Inflicted 938 | . 119 89 557 173 Guns 277 | . 54 40 124 59 Cannons . | . . . . . Explosions 612 | . 65 . 433 114 Melee 25 | . . 25 . . Ramming . | . . . . . Kinetic 59 | . . . . 59 Thermal 88 | . . 24 64 . Explosive 612 | . 65 . 433 114 Electromagnetic 154 | . 54 40 60 . Impact . | . . . . . Slashing 25 | . . 25 . . Piercing . | . . . . . Highest Corruption 1 | . . . . 1 Average Corruption 1 | . . . . 1 Corruption Purged . | . . . . . Corruption Blocked . | . . . . . Effects 1 | . . . . 1 Heat Flow Errors 1 | . . . . 1 Overload Shots . | . . . . . Overflow Damage . | . . . . . Projectiles . | . . . . . Explosions . | . . . . . Melee . | . . . . . Knockbacks . | . . . . . Impact . | . . . . . Kinetic . | . . . . . Secondary . | . . . . . Self-Inflicted Damage 108 | . . . 85 23 Shots 6 | . . . 5 1 Rammed . | . . . . . Targets Rammed . | . . . . . Kicked . | . . . . . Crushed . | . . . . . Highest Temperature 122 | . . 26 1 122 Average Temperature 17 | . . 10 1 35 Received Heat Transfer 672 | . 18 195 126 333 Siege Activations . | . . . . . Martial Activations . | . . . . . Shielding Activations . | . . . . . Robots Disrupted . | . . . . . Combat Hostiles . | . . . . . Robots Corrupted . | . . . . . Combat Hostiles . | . . . . . Parts Fried . | . . . . . Impact Corruptions . | . . . . . Robots Melted . | . . . . . Combat Hostiles . | . . . . . Parts Melted 1 | . . . 1 . Heat Transferred 309 | . . 50 259 . Parts Sabotaged . | . . . . . Parts Stolen . | . . . . . Parts Stripped . | . . . . . Power Chain Reactions . | . . . . . Alert | -11 -10 -10 -10 -8 ------- Run | Yrd Mat Min Sub Mat Maximum Alert Level . | . . . . . Low Security (%) 100 | 100 100 100 . 100 Level 1 . | . . . . . Level 2 . | . . . . . Level 3 . | . . . . . Level 4 . | . . . . . Level 5 . | . . . . . High Security . | . . . . . Max Security . | . . . . . Peak Influence 77 | . 39 20 . 77 Initial . | . . . . . Average 6 | . 5 . . 20 Influence Increases 190 | . 49 23 . 118 Destroy 0b10 Robot/C 100 | . 40 20 . 40 Destroy 0b10 Robot/NC 5 | . . . . 5 Destroy Leader 10 | . . . . 10 Disable Machine 15 | . . . . 15 Destroy Structure 30 | . 9 3 . 18 Lose Combat Pursuer 30 | . . . . 30 Influence Decreases 172 | . 49 23 . 100 Time Decay 120 | . 49 21 . 50 Lost Part 52 | . . 2 . 50 Squads Dispatched 4 | . . . . 4 Investigation . | . . . . . Extermination . | . . . . . Reinforcement 1 | . . . . 1 Assault 2 | . . . . 2 Garrison 1 | . . . . 1 Intercept . | . . . . . Searches Triggered . | . . . . . Construction Impeded . | . . . . . Haulers Reinforced . | . . . . . Active Scanning Responses . | . . . . . Cargo Convoy Interrupts . | . . . . . Stealth | -11 -10 -10 -10 -8 --------- Run | Yrd Mat Min Sub Mat Distress Signals 7 | . 3 . . 4 Communications Jammed . | . . . . . Distress Signals . | . . . . . Times Spotted 32 | . 2 2 6 22 Peak Tracking Total 17 | . 2 2 2 17 Tactical Retreats 1 | . . . . 1 Traps | -11 -10 -10 -10 -8 ------- Run | Yrd Mat Min Sub Mat Traps Triggered 2 | . . . 1 1 Indirectly . | . . . . . Trap Hack Attempts . | . . . . . Triggered . | . . . . . Disarmed . | . . . . . Reprogrammed . | . . . . . Reused . | . . . . . Traps Extracted . | . . . . . Installed . | . . . . . Triggered . | . . . . . Machines | -11 -10 -10 -10 -8 ---------- Run | Yrd Mat Min Sub Mat Machines Disabled 1 | . . . . 1 Max in Single Turn 1 | . . . . 1 Garrison Access 1 | . . . . 1 Machines Repaired . | . . . . . Machines Dismantled . | . . . . . Machines Sabotaged . | . . . . . Overloaded Fab Kills . | . . . . . Hacking | -11 -10 -10 -10 -8 --------- Run | Yrd Mat Min Sub Mat Machines Accessed 3 | . 2 . 1 . Terminals 2 | . 2 . . . Fabricators . | . . . . . Repair Stations . | . . . . . Recycling Units . | . . . . . Scanalyzers . | . . . . . Garrison Access . | . . . . . Total Hacks 5 | . 2 . 3 . Successful 5 | . 2 . 3 . Failed . | . . . . . Catastrophic . | . . . . . Database Lockouts . | . . . . . Manual . | . . . . . Terminals 2 | . 2 . . . Fabricators . | . . . . . Repair Stations . | . . . . . Recycling Units . | . . . . . Scanalyzers . | . . . . . Garrison Access . | . . . . . Terminal Hacks 5 | . 2 . 3 . Record 3 | . . . 3 . Alert Level 1 | . 1 . . . Zone Layout 1 | . 1 . . . Fabricator Hacks . | . . . . . Repair Station Hacks . | . . . . . Recycling Unit Hacks . | . . . . . Scanalyzer . | . . . . . Garrison Access Hacks . | . . . . . Unauthorized Hacks . | . . . . . Terminals . | . . . . . Fabricators . | . . . . . Repair Stations . | . . . . . Recycling Units . | . . . . . Scanalyzers . | . . . . . Garrison Access . | . . . . . Data Cores Recovered . | . . . . . Used . | . . . . . Hacking Detections . | . . . . . Full Trace Events . | . . . . . Feedback Events . | . . . . . Feedback Blocked . | . . . . . Robot Schematics Acquired . | . . . . . Robots Built . | . . . . . Authchips . | . . . . . Time . | . . . . . Total Robot Build Rating . | . . . . . Part Schematics Acquired . | . . . . . Parts Built . | . . . . . Authchips . | . . . . . Time . | . . . . . Total Part Build Rating . | . . . . . Parts Repaired . | . . . . . Time . | . . . . . Parts Recycled . | . . . . . Recycled Matter . | . . . . . Retrieved Matter . | . . . . . Retrieved Components . | . . . . . Parts Scanalyzed . | . . . . . Part Schematics Acquired . | . . . . . Parts Damaged . | . . . . . Bothacking | -11 -10 -10 -10 -8 ------------ Run | Yrd Mat Min Sub Mat Used RIF Installer . | . . . . . Robots Hacked . | . . . . . Non-combat . | . . . . . Combat . | . . . . . Robot Hacks Applied . | . . . . . Relay Couplers Released 2 | . . . . 2 Machine Destruction 2 | . . . . 2 Fabnet Peak Effective % . | . . . . . Robots Rewired . | . . . . . Allies Hacked . | . . . . . Hacks Repelled . | . . . . . Allies | -11 -10 -10 -10 -8 -------- Run | Yrd Mat Min Sub Mat Total Allies . | . . . . . Largest Group . | . . . . . Highest-Rated Group . | . . . . . Highest-Rated Ally . | . . . . . Total Orders . | . . . . . Ally Attacks . | . . . . . Total Damage . | . . . . . Kills . | . . . . . Allies Corrupted . | . . . . . Allies Melted . | . . . . . Intel | -11 -10 -10 -10 -8 ------- Run | Yrd Mat Min Sub Mat Active Infowar (turns) 190 | . . . . 190 Optics 190 | . . . . 190 Seismic 189 | . . . . 189 Robot Analysis Total . | . . . . . Derelict Logs Recovered 1 | . . . 1 . Drone Launches . | . . . . . Drone Recoveries . | . . . . . Exploration | -11 -10 -10 -10 -8 ------------- Run | Yrd Mat Min Sub Mat Turns Passed 2912 | 95 390 304 1912 211 Spaces Moved 1371 | 64 328 144 737 98 Core 35 | 25 . . 10 . Treads 291 | . . 108 183 . Legs 40 | . . . . 40 Wheels 1005 | 39 328 36 544 58 Hover . | . . . . . Flight . | . . . . . Fastest Speed 50 | 50 90 105 160 105 Average Speed 183 | 113 103 146 233 167 Slowest Speed 3400 | 250 105 160 3400 210 Overloaded Moves . | . . . . . Propulsion Burnouts . | . . . . . Robots Hopped . | . . . . . Potential Cave-ins . | . . . . . Cave-ins Triggered . | . . . . . Exploration Rate (%) 27 | 4 53 35 32 13 Regions Visited 4 Branch Regions 2 Pre-discovered Areas 2 | . . . 2 . Known Exits Taken . | . . . . . Unknown Exits Taken 4 | 1 1 1 1 . Scrap Searched 3 | . . 1 2 . Spaces Dug 46 | . . . 46 . Terrain Destroyed 114 | . 9 3 86 16 Melee . | . . . . . Projectile 4 | . . 3 . 1 AOE 110 | . 9 . 86 15 Terrain Rammed . | . . . . . Walls Destroyed . | . . . . . Machines Disabled . | . . . . . Actions | -11 -10 -10 -10 -8 --------- Run | Yrd Mat Min Sub Mat Total 1692 | 86 370 214 884 138 Wait 169 | 7 15 44 88 15 Move 1367 | 63 327 143 736 98 Hop . | . . . . . Pick Up 50 | 10 13 3 20 4 Fast Attach . | . . . . . Attach 28 | 6 5 4 6 7 Detach 2 | . 1 . . 1 Swap 5 | . . 4 1 . Drop 18 | . 3 5 5 5 Fire 52 | . 6 10 28 8 Melee 1 | . . 1 . . Ram . | . . . . . Kick . | . . . . . Crush . | . . . . . Escape Stasis . | . . . . . Rewire . | . . . . . Trap . | . . . . . Miscellaneous . | . . . . . Route ------- -11/Scrapyard -10/Materials -10/Mines -10/Subcaves -8/Materials History --------- Turn | Location | Event 15 | -11/Scrapyard | Discovered new exit (range 16) 96 | -11/Scrapyard | Entered Materials 315 | -10/Materials | Build established: Mutant 424 | -10/Materials | Discovered new exit (range 15) 486 | -10/Materials | Entered Mines 681 | -10/Mines | Found a damaged Exp. Sensor Array with a note attached 695 | -10/Mines | Found Prototype Device 752 | -10/Mines | Discovered new exit (range 5) 790 | -10/Mines | Entered Subcaves 791 | -10/Subcaves | Approached by a straggling Scientist 797 | -10/Subcaves | Learned location of Mines (-10) 1275 | -10/Subcaves | Discovered new exit (range 10) 1397 | -10/Subcaves | Shifting Twisted Machinery released Sub. Machine Gun 1405 | -10/Subcaves | Build established: Hauler-Mutant 1415 | -10/Subcaves | Shifting Twisted Machinery released Sub. Machine Gun 1523 | -10/Subcaves | Visited Clippyterm 1528 | -10/Subcaves | Learned location of Deep Caves (-6) 1551 | -10/Subcaves | Shifting Twisted Machinery released Battle Rifle 1571 | -10/Subcaves | Shifting Twisted Machinery released Flamer 1766 | -10/Subcaves | Ambushed by Subdweller buried in earth 1775 | -10/Subcaves | Core integrity fell below 50% 1818 | -10/Subcaves | Lost 3 parts (1p1n1w) 2702 | -10/Subcaves | Entered Materials 2702 | -8/Materials | Evolved 4 slots: Power x1, Propulsion x1, Utility x2 2767 | -8/Materials | Garrison activated, responded to threat 2907 | -8/Materials | Core integrity fell below 50% 2912 | -8/Materials | Core integrity fell below 20% 2913 | -8/Materials | Destroyed by G-47 Trooper with Particle Gun Last Messages --------------- The floor emits a surge of raw power. System corrupted (+1). W-25 Informer sends out distress signal. System corrupted: Heat flow error (+150). W-25 Informer sends out distress signal. C-30 ARC bursts open, deploying its payload. G-50 Soldier unfolds itself. L-31 Rogue unfolds itself. G-47 Trooper unfolds itself. M-28 Smith unfolds itself. C-30 ARC bursts open, deploying its payload. G-47 Trooper unfolds itself. Sub. Machine Gun destroyed. Critical hit (Burn: +37). Sub. Monowheel destroyed. Carbon-fiber Leg severed. M-28 Smith repairs W-25 Informer. VSS Leg severed. Seismic Detector destroyed. Critical hit (Burn: +37). Map ----- +----------------------------------------------------+ | | | | | | | | | | | | | | | | | | | | | | | | | ?????????????????????????###############?#######?? | | ?????????????????????????# #?# !#? | | ?????????????????????????# #?#! #? | | ?????????????????????????# #?# "" #? | | ?????????????????????????# #?#/ S"" #? | | ?????????????????????????# #?# "" ## | | ?????????????????????????# = #??? ## | | ?????????????????????????#######+############+###" | | ??????????????????????????????# | | ??????????????????????????????# ########### [ # | | ???????????????????????#####??# #?????????# !!%# | | ???????????????????????# #### ###########/!&!# | | ???????????????????????# ##"" # ! ## !&!# | | ???????????????????????#=@ ##T # """ ## * # | | ???????????????????????# l#### # """"" ## # | | ???????????????????????# ggg # """"" ## # | | ???????????????????????#ggg g / """"" ## # | | ???????????????????????# w i " # """ + | | ???????????????????????# #####%##[ ## #### | | ???????????????????????# #???# ## ! ## #??? | | ???????????????????????# #???# ##[ ## #??? | | ???????????????????????+ #???# #########+## #??? | | ???????????????????????# #???# #?????????? #??? | | ???????????????????????# #???#+#?????????? #??? | | ???????????????????????# g#?? ????????? #??? | | ???????????????????????# #[ """ /?????? #??? | | ???????????????????????# # ! """ # ???? ???? | | ???????????????????????#Y # """ #? [ ??###???? | | ???????????????????????# / #???##???????? | | ??????????????????????? # ! """ #????????????? | | ??????????????????????? # """ #????????????? | | ??????????????????????? # ""? #????????????? | | ??????????????????????#### # ????#????????????? | | ?????????????????????????? #####?????????????????? | | ?????????????????????????? ??????????????????????? | | ?????????????????????????? ??????????????????????? | | ?????????????????????????????????????????????????? | | ?????????????????????????????????????????????????? | +----------------------------------------------------+ Best States ------------- Heat Dissipation 35 Energy Generation 14 Energy Capacity 250 Matter Stores 300 Matter Capacity 300 Sight Range 18 Terrain Scan Density 85 Evasion (%) 55 Recoil Reduction 2 Item Schematics ----------------- None Robot Schematics ------------------ None Fabricated ------------ Nothing Repaired ---------- Nothing Alien Tech Used ----------------- None Achievements -------------- Backstab Tank Challenges ------------ None Game ------ Seed GuidanceMicrowarpLegs Manual? 0 Play Time 00:27:38 Cumulative 7.6 hours Start 2025.07.14 @ 10:54:44 End 2025.07.14 @ 11:25:44 Sessions 1 Manual Loads 0 Difficulty Rogue Special Mode None Game No. 14 Rogue 14 Adventurer 0 Explorer 0 Win Type - Total 0 Types 0/0/0/0/0/0/0/0/0/0 Lore% 3 Gallery% 15 Achievement% 12 Wizard Run 0 Options --------- Layout 1 ASCII 0 Keyboard 0 Movement Mouse Keybinds 0 Fullscreen 1 Font 32/SmallcapsGlow Map View 50x35 Zoom Use 0% Tactical HUD 0 Map Filters NONE Filters NONE Steam 1 RUN: 07e57f53-190a-49bb-be5c-3246bba6719c